bitfinex-derivatives/quotes_SOLF0:USTF0_20251223
["timestamp","ask_amount","ask_price","bid_price","bid_amount"]
[1766532749482,0.05890956,123.85,123.82,0.00465142]
[1766532749688,3.24890956,123.85,123.82,0.00465142]
[1766532753286,0.05890956,123.85,123.82,0.00465142]
[1766532754598,3.38890956,123.85,123.82,0.00465142]
[1766532758000,0.05890956,123.85,123.82,0.00465142]
[1766532758188,0.05890956,123.85,123.82,7.27675142]
[1766532759195,3.33,123.87,123.82,7.27675142]
[1766532760202,0.0619001,123.86,123.82,7.27675142]
[1766532763499,0.0619001,123.86,123.82,102.65675142]
[1766532765306,0.0619001,123.86,123.83,7.2716]
[1766532769309,0.0619001,123.86,123.82,95.38465142]
[1766532771308,0.0619001,123.86,123.82,102.65675142]
[1766532776912,0.0619001,123.86,123.83,7.2716]
[1766532777608,0.0619001,123.86,123.84,7.2709]
[1766532777807,3.33,123.88,123.84,7.2709]
[1766532778919,0.06075777,123.87,123.85,0.05219766]
[1766532784722,3.29,123.89,123.85,0.05219766]
[1766532786021,0.04104581,123.88,123.85,0.05219766]
[1766532793524,3.33104581,123.88,123.85,0.05219766]
[1766532800634,0.04104581,123.88,123.85,0.05219766]
[1766532803937,3.33104581,123.88,123.85,0.00219766]
[1766532811237,3.33104581,123.88,123.78,128.18645384]
[1766532811438,3.29,123.88,123.79,95.36]
[1766532812144,3.29,123.88,123.81,7.2727]
[1766532812342,0.05863159,123.86,123.83,0.05925614]
[1766532812944,0.05863159,123.86,123.83,7.33075614]
[1766532813144,0.05863159,123.86,123.83,95.41925614]
[1766532814663,0.05863159,123.86,123.84,7.2708]
[1766532818263,3.43,123.87,123.84,7.2708]
[1766532819368,3.46461189,123.87,123.84,7.2708]
[1766532819568,0.03461189,123.87,123.84,102.6308]
[1766532820269,0.03461189,123.87,123.84,7.2708]
[1766532820462,0.03461189,123.87,123.84,102.6308]
[1766532820663,3.22,123.9,123.85,7.2704]
[1766532821056,2.05323365,123.92,123.85,7.2704]
[1766532821261,3.22,123.92,123.86,113.0861]
[1766532821469,3.22,123.92,123.87,95.36]
[1766532821666,3.22,123.92,123.88,7.32765835]
[1766532821871,3.22,123.92,123.88,0.05915835]
[1766532822268,3.22,123.9,123.86,95.36]
[1766532822966,3.27213636,123.91,123.86,95.36]
[1766532823267,3.27213636,123.91,123.87,0.05567024]
[1766532824678,3.27213636,123.91,123.87,7.32487024]
[1766532824976,0.05213636,123.91,123.87,0.05567024]
[1766532826575,0.05213636,123.91,123.88,7.2685]
[1766532829281,0.05213636,123.91,123.87,0.05567024]
[1766532834983,0.05213636,123.91,123.87,95.39567024]
[1766532836386,0.05213636,123.91,123.87,0.05567024]
[1766532836577,3.27213636,123.91,123.87,95.39567024]
[1766532841591,3.27213636,123.91,123.87,0.05567024]
[1766532842790,3.27213636,123.91,123.83,15.02995384]
[1766532842995,3.21,123.89,123.81,3.22]
[1766532843194,3.21,123.89,123.81,98.56]
[1766532843786,3.21,123.87,123.81,98.56]
[1766532843981,0.05843276,123.85,123.83,0.05544389]
[1766532844186,3.26843276,123.85,123.77,98.56]
[1766532844480,5.26323365,123.86,123.77,3.22]
[1766532844481,3.21,123.84,123.77,3.22]
[1766532845192,0.05416658,123.82,123.79,0.05292971]
[1766532862206,0.05416658,123.82,123.79,3.27292971]
[1766532862409,0.00416658,123.82,123.8,3.22]
[1766532862703,1.3158198,123.86,123.8,3.22]
[1766532862704,98.55,123.87,123.8,3.22]
[1766532862900,98.55,123.87,123.81,3.22]
[1766532863702,0.05766375,123.85,123.83,0.054702]
[1766532865109,3.21,123.87,123.83,0.054702]
[1766532866202,0.05542395,123.86,123.83,0.054702]
[1766532869713,0.05542395,123.86,123.83,7.326202]
[1766532871410,0.05542395,123.86,123.83,0.054702]
[1766532873703,7.2677,123.9,123.85,3.31]
[1766532873704,3.24,123.9,123.85,3.31]
[1766532874808,3.24,123.9,123.86,0.05934929]
[1766532875011,1.3158198,123.93,123.86,3.43934929]
[1766532875310,3.49,123.92,123.88,0.05291496]
[1766532882206,3.49,123.92,123.83,113.1103]
[1766532882207,1.3158198,123.91,123.83,3.38]
[1766532882407,3.49,123.9,123.83,3.38]
[1766532883313,3.54409313,123.88,123.85,0.05695631]
[1766532883516,3.54409313,123.88,123.83,10.6513]
[1766532884512,3.54409313,123.88,123.84,0.05714653]
[1766532890111,0.05409313,123.88,123.84,0.05714653]
[1766532890316,0.05409313,123.88,123.84,10.70814653]
[1766532890519,0.05409313,123.88,123.84,7.32814653]
[1766532890719,3.49,123.85,123.81,7.2726]
[1766532890908,3.49,123.85,123.77,3.38]
[1766532891714,0.05267638,123.82,123.8,0.05974509]
[1766532893116,3.49,123.86,123.8,3.43974509]
[1766532894207,0.05138541,123.84,123.8,3.43974509]
[1766532900731,0.00138541,123.84,123.8,10.71284509]
[1766532900924,0.00138541,123.84,123.81,3.29]
[1766532901421,34.92541063,124.13,123.8,7.33284509]
[1766532901422,3.2,123.92,123.85,3.29]
[1766532901626,3.2,123.92,123.86,3.29]
[1766532902428,3.2,123.92,123.88,0.0590371]
[1766532902429,0.05227713,123.9,123.88,0.0590371]
[1766532903737,3.25227713,123.9,123.84,3.29]
[1766532904521,3.25227713,123.9,123.86,0.05514538]
[1766532912338,3.25227713,123.9,123.82,105.9218]
[1766532912538,3.2,123.9,123.82,105.9218]
[1766532912939,3.2,123.89,123.82,105.9218]
[1766532913334,0.05515729,123.87,123.84,0.05793604]
[1766532913547,3.25515729,123.87,123.82,95.36]
[1766532914443,3.25515729,123.87,123.83,0.05944693]
[1766532916851,3.2,123.86,123.83,0.05944693]
[1766532919851,7.32455729,123.87,123.83,0.05944693]
[1766532919852,0.05515729,123.87,123.83,0.05944693]
[1766532921855,3.25515729,123.87,123.83,0.05944693]
[1766532933264,0.05515729,123.87,123.84,3.25]
[1766532934672,0.05515729,123.87,123.84,10.521]
[1766532934970,3.52,123.89,123.84,10.521]
[1766532935969,0.05099797,123.88,123.84,10.521]
[1766532945680,0.05099797,123.88,123.85,10.6304]
[1766532945876,3.38,123.91,123.85,10.6304]
[1766532946981,0.05283655,123.89,123.87,0.0549659]
[1766532951287,0.00283655,123.89,123.87,3.4149659]
[1766532951589,3.38,123.93,123.87,3.4149659]
[1766532951989,3.38,123.93,123.89,3.36]
[1766532952588,0.05510162,123.92,123.9,0.06214174]
[1766532959100,3.38,123.95,123.9,0.06214174]
[1766532960102,0.0239993,123.94,123.9,0.06214174]
[1766532960305,3.4039993,123.94,123.9,0.06214174]
[1766532964010,3.18,123.93,123.9,0.00214174]
[1766532966008,0.0239993,123.94,123.9,0.00214174]
[1766532967609,3.2039993,123.94,123.9,0.00214174]
[1766532977415,3.18,123.93,123.9,0.00214174]
[1766532982424,3.18,123.93,123.88,74.14214174]
[1766532982625,1.31307145,123.92,123.88,74.14214174]
[1766532982922,7.2658,123.93,123.88,74.14214174]
[1766532983625,0.06093035,123.92,123.89,0.05212719]
[1766533003344,0.06093035,123.92,123.9,3.35]
[1766533003638,8.57757145,123.96,123.9,3.35]
[1766533004643,0.02521069,123.94,123.92,0.05308044]
[1766533014939,96.63307145,123.99,123.92,3.40308044]
[1766533016134,7.2634,123.97,123.92,3.40308044]
[1766533016339,8.57647145,123.97,123.92,0.05308044]
[1766533016843,7.2634,123.97,123.92,0.05308044]
[1766533022253,7.2642,123.96,123.92,0.05308044]
[1766533026756,7.2642,123.96,123.92,3.39308044]
[1766533027462,7.2631,123.98,123.92,3.39308044]
[1766533027749,112.9409,124.03,123.92,3.39308044]
[1766533027957,1.31307145,124.01,123.96,0.05757171]
[1766533028550,7.2618,124.0,123.96,0.05757171]
[1766533029556,1.31307145,124.01,123.96,0.05757171]
[1766533033065,8.57417145,124.01,123.96,0.05757171]
[1766533033961,7.2611,124.01,123.96,0.05757171]
[1766533039864,95.3,124.02,123.96,0.05757171]
[1766533040063,97.35024102,124.02,123.96,0.05757171]
[1766533040759,95.3,124.02,123.96,3.39757171]
[1766533042652,102.5605,124.02,123.96,3.39757171]
[1766533044269,95.3,124.02,123.96,10.66157171]
[1766533044858,95.3,124.02,123.96,3.39757171]
[1766533045060,7.2596,124.04,123.96,3.39757171]
[1766533045260,7.2596,124.04,123.99,0.05256832]
[1766533046266,7.2602,124.03,123.99,0.05256832]
[1766533047275,102.5391,124.05,123.99,0.05256832]
[1766533049674,7.2595,124.04,123.99,0.05256832]
[1766533050365,7.3099,124.03,123.99,0.00256832]
[1766533050570,2.05024102,124.02,123.95,10.604]
[1766533050960,2.05024102,124.02,123.96,3.32]
[1766533051459,0.05256832,124.0,123.98,0.05457421]
[1766533055678,0.05256832,124.0,123.98,0.00457421]
[1766533057376,0.05256832,124.0,123.93,10.5852]
[1766533057576,2.05024102,124.01,123.93,10.5852]
[1766533057770,9.31134102,124.01,123.93,10.5852]
[1766533058470,0.05131151,123.98,123.96,0.05910761]
[1766533061481,0.05131151,123.98,123.96,3.48910761]
[1766533063380,0.00131151,123.98,123.96,3.48910761]
[1766533070687,0.00131151,123.98,123.96,0.05910761]
[1766533070883,0.00131151,123.98,123.92,10.696]
[1766533071283,0.00131151,123.98,123.93,3.43]
[1766533071778,7.26421151,123.98,123.91,98.71]
[1766533071983,2.05024102,123.97,123.93,0.05755637]
[1766533074282,9.31374102,123.97,123.93,0.05755637]
[1766533078284,0.00131151,123.98,123.93,3.48755637]
[1766533080282,2.05024102,123.97,123.93,0.05755637]
[1766533080477,0.00131151,123.98,123.91,3.43]
[1766533080691,2.05024102,123.98,123.91,3.43]
[1766533080882,7.2634,123.97,123.91,3.43]
[1766533081490,0.05147713,123.95,123.93,0.05276176]
[1766533084490,0.05147713,123.95,123.89,3.43]
[1766533084687,2.05024102,123.96,123.89,3.43]
[1766533085486,0.05848522,123.94,123.91,0.05862629]
[1766533086192,7.32378522,123.94,123.89,3.43]
[1766533086986,0.05848522,123.94,123.89,3.43]
[1766533087194,0.05848522,123.94,123.91,3.43]
[1766533087390,0.06183347,123.94,123.91,3.43]
[1766533091586,0.06183347,123.94,123.9,0.05753887]
[1766533092001,0.06183347,123.94,123.9,3.48753887]
[1766533094801,0.00183347,123.94,123.9,3.48753887]
[1766533094998,0.00183347,123.94,123.91,3.43]
[1766533100294,77.63183347,123.96,123.92,3.43]
[1766533100603,8.57589909,123.98,123.92,3.43]
[1766533101206,0.05824313,123.96,123.94,0.05368907]
[1766533104407,7.2628,123.98,123.94,3.48368907]
[1766533104595,1.31309909,123.98,123.94,3.48368907]
[1766533105509,0.05353349,123.97,123.94,3.48368907]
[1766533105710,0.00353349,123.97,123.94,3.48368907]
[1766533106106,1.31309909,124.02,123.94,3.48368907]
[1766533106300,1.31309909,124.02,123.94,3.43]
[1766533106916,1.31309909,124.02,123.95,3.26]
[1766533107515,0.05344706,124.0,123.97,3.31574162]
[1766533112815,0.00344706,124.0,123.97,3.31574162]
[1766533115123,3.40344706,124.0,123.94,7.2648]
[1766533115414,4.71309909,123.99,123.93,3.38]
[1766533115720,4.71309909,123.97,123.89,3.38]
[1766533115904,11.97659909,123.97,123.9,3.38]
[1766533116109,1.31309909,123.95,123.9,3.38]
[1766533116316,0.05808419,123.94,123.91,0.0581327]
[1766533119517,3.4,123.98,123.91,3.4381327]
[1766533119723,1.31309909,123.96,123.91,3.4381327]
[1766533120022,1.31309909,123.96,123.91,3.38]
[1766533120614,0.05696831,123.95,123.92,3.43803101]
[1766533120809,1.31309909,123.97,123.92,3.43803101]
[1766533121011,4.71309909,123.99,123.92,3.43803101]
[1766533121313,4.71309909,123.99,123.92,3.38]
[1766533121908,4.71309909,123.99,123.94,0.05670898]
[1766533123524,11.97539909,123.99,123.94,0.05670898]
[1766533127128,10.6623,123.99,123.94,0.05670898]
[1766533130531,3.21,123.98,123.94,0.05670898]
[1766533133432,10.473,123.98,123.94,0.05670898]
[1766533143733,3.21,123.98,123.94,0.05670898]
[1766533143939,3.21,123.98,123.94,3.47670898]
[1766533144143,103.85499909,124.0,123.94,3.47670898]
[1766533144144,107.15499909,124.0,123.94,3.47670898]
[1766533145644,3.3,123.99,123.94,3.47670898]
[1766533154058,105.8419,124.0,123.95,3.42]
[1766533154556,98.58,124.0,123.95,3.42]
[1766533154751,10.5608,124.02,123.96,4.73309909]
[1766533154952,10.5608,124.02,123.98,0.05303706]
[1766533155163,3.3,124.01,123.98,0.05303706]
[1766533155856,3.3,124.0,123.94,3.42]
[1766533156754,0.05531065,123.98,123.96,0.06011316]
[1766533172262,3.3,124.0,123.96,0.06011316]
[1766533177274,10.5617,124.0,123.96,0.06011316]
[1766533177575,3.3,124.0,123.93,3.48]
[1766533178373,0.06011316,123.98,123.95,0.06202017]
[1766533178575,3.25011316,123.98,123.95,0.06202017]
[1766533182975,10.51301316,123.98,123.95,0.06202017]
[1766533183179,10.51301316,123.98,123.95,0.00202017]
[1766533183378,3.19,123.97,123.95,0.00202017]
[1766533183577,3.19,123.96,123.91,3.19]
[1766533183781,3.19,123.96,123.89,3.19]
[1766533184673,0.05289418,123.94,123.91,0.05574582]
[1766533195192,3.24289418,123.94,123.91,0.05574582]
[1766533195488,3.19,123.93,123.86,12.51950866]
[1766533195691,3.19,123.93,123.87,3.19]
[1766533196387,0.05132074,123.91,123.89,0.05806665]
[1766533200292,3.19,123.94,123.89,3.24806665]
[1766533200593,3.19,123.9,123.82,3.19]
[1766533200804,3.19,123.9,123.83,3.19]
[1766533201192,3.19,123.9,123.84,3.45]
[1766533201392,3.19,123.9,123.83,7.2715]
[1766533201592,3.19,123.9,123.82,3.45]
[1766533201792,0.05514131,123.87,123.85,0.05337364]
[1766533209201,0.05514131,123.87,123.85,3.50337364]
[1766533209401,3.42,123.9,123.85,3.50337364]
[1766533209998,3.42,123.9,123.85,0.05337364]
[1766533210311,3.42,123.88,123.85,0.00337364]
[1766533211014,113.0117,123.95,123.85,3.45337364]
[1766533211203,2.83715572,123.97,123.85,3.45337364]
[1766533211204,0.054863,123.91,123.89,0.05890329]
[1766533211396,0.054863,123.91,123.89,0.0550228]
[1766533211397,0.05169623,123.91,123.89,0.0550228]
[1766533212310,3.42,123.94,123.89,0.0550228]
[1766533212701,3.42,123.94,123.86,3.45]
[1766533213008,3.42,123.93,123.86,3.45]
[1766533213804,0.05185353,123.91,123.88,0.05800297]
[1766533222603,3.47185353,123.91,123.85,10.7202]
[1766533223606,3.47185353,123.91,123.87,0.0533451]
[1766533223807,3.42,123.9,123.87,0.0533451]
[1766533226117,3.42,123.9,123.87,0.0033451]
[1766533226618,0.05185353,123.91,123.87,0.0033451]
[1766533227818,3.47185353,123.91,123.87,0.0033451]
[1766533232224,12.05260068,123.91,123.87,0.0033451]
[1766533232425,3.44,123.9,123.83,10.5711]
[1766533233415,0.05104091,123.88,123.85,0.05479162]
[1766533234021,3.49104091,123.88,123.83,3.3]
[1766533234515,3.49104091,123.88,123.81,10.5722]
[1766533234718,3.49104091,123.88,123.82,3.3]
[1766533234910,3.49104091,123.88,123.82,10.5721]
[1766533235111,3.49104091,123.88,123.84,0.05520388]
[1766533235312,0.05104091,123.88,123.84,3.35520388]
[1766533236317,0.00104091,123.88,123.84,3.35520388]
[1766533237520,0.00104091,123.88,123.85,7.2703]
[1766533238616,0.00104091,123.88,123.84,3.35520388]
[1766533239616,0.00104091,123.88,123.84,10.62610388]
[1766533239816,0.00104091,123.88,123.85,3.18]
[1766533244124,0.00104091,123.88,123.85,10.4502]
[1766533244321,0.00104091,123.88,123.86,3.18]
[1766533244528,0.00104091,123.88,123.87,3.18]
[1766533248536,0.00104091,123.88,123.86,7.2698]
[1766533248714,0.00104091,123.88,123.86,10.4498]
[1766533249121,0.00104091,123.88,123.87,3.18]
[1766533261940,3.53,123.92,123.87,3.18]
[1766533262834,3.53,123.92,123.87,10.4493]
[1766533263039,0.05413519,123.91,123.88,0.05926811]
[1766533264842,3.3,123.93,123.88,3.27926811]
[1766533265745,0.06068519,123.92,123.88,3.27926811]
[1766533266346,0.00068519,123.92,123.89,3.22]
[1766533266642,0.00068519,123.92,123.88,3.27926811]
[1766533270241,3.30068519,123.92,123.88,3.27926811]
[1766533270448,3.30068519,123.92,123.88,0.05926811]
[1766533284651,3.3,123.91,123.85,3.22]
[1766533285648,0.05848771,123.89,123.87,0.05896593]
[1766533287251,3.35848771,123.89,123.85,3.22]
[1766533288162,3.35848771,123.89,123.86,0.05670378]
[1766533288448,3.35848771,123.89,123.83,98.56]
[1766533288648,3.35848771,123.89,123.84,3.22]
[1766533289350,3.35848771,123.89,123.85,0.05395581]
[1766533305664,0.05848771,123.89,123.85,10.73425581]
[1766533305870,3.42,123.91,123.85,10.73425581]
[1766533306169,3.42,123.91,123.85,10.6803]
[1766533306762,0.05873841,123.89,123.87,0.05520305]
[1766533325278,9.31883095,123.93,123.87,0.05520305]
[1766533326175,0.0570474,123.91,123.87,3.56520305]
[1766533326377,0.0570474,123.91,123.88,0.05561793]
[1766533327268,3.19,123.94,123.88,3.56561793]
[1766533327579,3.19,123.94,123.88,10.83411793]
[1766533328279,0.05775298,123.92,123.88,10.83411793]
[1766533331982,3.19,123.93,123.88,10.83411793]
[1766533333081,0.05458767,123.92,123.89,3.51]
[1766533333281,10.4537,123.97,123.91,3.51]
[1766533333580,3.19,123.96,123.91,3.51]
[1766533334177,3.24225398,123.95,123.92,0.05958395]
[1766533338385,0.05225398,123.95,123.92,10.83578395]
[1766533338582,3.19,123.99,123.93,3.51]
[1766533339286,3.19,123.99,123.91,3.51]
[1766533339486,3.19,123.99,123.94,0.05220553]
[1766533340085,10.4525,123.99,123.94,0.05220553]
[1766533340278,3.19,123.98,123.94,0.05220553]
[1766533340475,3.19,123.98,123.94,0.00220553]
[1766533341486,3.20211552,123.97,123.94,0.00220553]
[1766533349192,0.06211552,123.97,123.94,0.00220553]
[1766533350389,0.06211552,123.97,123.94,3.51220553]
[1766533350895,3.14,123.99,123.94,3.51220553]
[1766533352882,3.14,124.0,123.95,3.22]
[1766533354601,3.14,124.0,123.95,10.4845]
[1766533355796,3.14,124.02,123.96,3.22]
[1766533355992,3.14,124.02,123.98,0.06108703]
[1766533356597,4.4527393,124.01,123.98,0.06108703]
[1766533356798,3.14,124.0,123.93,3.22]
[1766533357000,3.08,123.98,123.93,3.22]
[1766533357394,4.3927393,124.0,123.94,10.4851]
[1766533357899,0.05323675,123.98,123.96,0.05973067]
[1766533361807,0.00323675,123.98,123.96,10.83363067]
[1766533364303,3.13,124.02,123.97,10.7734]
[1766533372330,98.45,124.04,123.98,3.51]
[1766533372530,1.3127393,124.03,124.0,0.05531276]
[1766533373030,3.07,124.02,123.98,3.51]
[1766533373719,1.3127393,124.03,123.98,3.51]
[1766533373930,0.05253511,124.02,123.99,0.05476068]
[1766533380237,95.26,124.06,123.99,3.56476068]
[1766533380833,95.26,124.06,124.01,3.51]
[1766533381227,95.26,124.06,124.02,0.06084781]
[1766533382334,99.6927393,124.06,124.02,0.06084781]
[1766533384839,3.12,124.05,124.02,0.06084781]
[1766533386136,3.12,124.05,123.99,3.28]
[1766533386346,3.06,124.03,123.97,3.28]
[1766533386843,4.3727393,124.02,123.97,3.28]
[1766533387237,0.06164567,124.01,123.98,0.05826412]
[1766533388235,3.12164567,124.01,123.98,0.05826412]
[1766533393346,4.43438497,124.01,123.98,0.05826412]
[1766533394647,3.12164567,124.01,123.98,0.05826412]
[1766533394841,4.43438497,124.01,123.98,0.05826412]
[1766533395241,3.06,124.0,123.94,95.26]
[1766533395647,3.06,124.0,123.93,3.28]
[1766533396046,3.06,123.98,123.93,3.28]
[1766533396250,0.05904632,123.97,123.94,0.05512738]
[1766533398353,0.05904632,123.97,123.94,3.33512738]
[1766533398549,3.06,124.0,123.94,3.33512738]
[1766533399653,0.05475735,123.98,123.94,3.33512738]
[1766533402454,0.05475735,123.98,123.94,10.60022738]
[1766533402653,0.05475735,123.98,123.95,3.28]
[1766533407359,3.12,124.02,123.95,3.28]
[1766533408455,0.02366425,124.0,123.97,0.05141656]
[1766533412560,2.05042074,124.03,123.97,10.58471656]
[1766533412760,98.43,124.05,123.97,10.58471656]
[1766533412761,98.43,124.05,123.98,3.27]
[1766533413167,95.26,124.05,124.0,3.27]
[1766533413364,10.448,124.07,124.0,3.27]
[1766533413663,3.19,124.07,124.02,0.05950042]
[1766533414362,3.19,124.07,124.02,3.56950042]
[1766533414758,3.19,124.07,124.02,0.05950042]
[1766533415257,3.13,124.06,123.98,3.51]
[1766533416260,0.05950042,124.03,124.01,0.06179595]
[1766533416456,0.05950042,124.03,123.98,3.51]
[1766533416661,3.18950042,124.03,123.98,3.51]
[1766533417263,0.05950042,124.03,123.99,3.51]
[1766533417563,0.05950042,124.03,124.0,0.05365182]
[1766533418862,0.05950042,124.03,124.0,3.56365182]
[1766533419556,2.05042074,124.06,124.0,3.56365182]
[1766533420263,5.24042074,124.06,124.0,3.56365182]
[1766533420567,0.0530005,124.04,124.0,3.56365182]
[1766533424272,0.0030005,124.04,124.0,10.82515182]
[1766533424474,0.0030005,124.04,124.0,0.05365182]
[1766533424675,3.1930005,124.04,124.0,0.05365182]
[1766533424867,12.50282124,124.04,124.0,0.05365182]
[1766533425267,12.50282124,124.04,123.97,3.51]
[1766533425268,3.19,124.03,123.97,3.51]
[1766533426173,3.19,124.05,123.99,0.06189641]
[1766533426378,3.19,124.05,123.99,3.57189641]
[1766533428884,3.19,124.05,123.99,10.83399641]
[1766533429584,3.19,124.05,124.0,3.51]
[1766533432382,3.19,124.07,124.0,3.51]
[1766533432584,3.19,124.06,124.02,0.05835277]
[1766533432787,3.19,124.04,123.98,3.51]
[1766533433786,0.06026188,124.02,124.0,0.05830631]
[1766533443786,3.19,124.04,124.0,0.05830631]
[1766533443981,2.05042074,124.05,124.0,3.33830631]
[1766533444176,3.23,124.06,124.0,10.59990631]
[1766533445088,3.23,124.06,124.01,10.541]
[1766533445488,3.23,124.08,124.02,3.28]
[1766533445793,3.23,124.08,124.04,0.05956212]
[1766533446588,10.487,124.08,124.04,0.05956212]
[1766533448489,98.10479718,124.09,124.04,0.05956212]
[1766533448686,98.10479718,124.09,124.04,3.33956212]
[1766533448994,101.33479718,124.09,124.04,3.33956212]
[1766533450191,7.88823625,124.11,124.04,3.33956212]
[1766533450401,98.47,124.1,124.04,3.33956212]
[1766533450792,3.23,124.1,124.04,3.33956212]
[1766533462401,3.23,124.08,124.04,0.05956212]
[1766533463102,10.4864,124.09,124.04,3.33956212]
[1766533463302,3.23,124.09,124.04,3.33956212]
[1766533464103,4.54033452,124.09,124.04,3.33956212]
[1766533466824,11.79683452,124.09,124.04,3.33956212]
[1766533470424,110.36393625,124.11,124.04,3.33956212]
[1766533470619,111.67427077,124.11,124.04,3.33956212]
[1766533472630,111.67427077,124.11,124.05,3.45]
[1766533472831,111.67427077,124.11,124.07,0.05705094]
[1766533474033,104.41857077,124.11,124.07,0.05705094]
[1766533474223,103.10823625,124.11,124.07,0.05705094]
[1766533475230,7.88823625,124.11,124.07,0.05705094]
[1766533475423,4.65823625,124.11,124.07,0.05705094]
[1766533476337,4.55033452,124.1,124.07,0.05705094]
[1766533476531,4.65823625,124.11,124.07,3.27705094]
[1766533476837,5.96857077,124.11,124.07,3.27705094]
[1766533486842,9.20857077,124.11,124.07,3.27705094]
[1766533487031,3.24,124.1,124.07,0.05705094]
[1766533498257,4.65823625,124.11,124.07,0.05705094]
[1766533498854,7.89823625,124.11,124.07,0.05705094]
[1766533500153,4.65823625,124.11,124.07,3.27705094]
[1766533500355,4.55033452,124.13,124.07,3.27705094]
[1766533500559,4.55033452,124.13,124.09,0.05812585]
[1766533501554,3.21,124.12,124.09,0.05812585]
[1766533505858,4.49033452,124.11,124.06,3.36]
[1766533506865,0.05961242,124.1,124.07,0.05629114]
[1766533510766,4.43033452,124.09,124.04,3.36]
[1766533511262,3.12,124.08,124.02,3.36]
[1766533511867,0.05530397,124.06,124.04,0.05118846]
[1766533512566,3.18,124.12,124.04,3.41118846]
[1766533512756,4.49033452,124.12,124.05,3.36]
[1766533512957,3.18,124.12,124.05,3.36]
[1766533513161,4.49033452,124.12,124.05,3.36]
[1766533513562,0.05689321,124.1,124.07,3.41224769]
[1766533518981,0.05689321,124.1,124.07,0.05224769]
[1766533522081,0.05689321,124.1,124.07,3.41224769]
[1766533522288,3.18,124.12,124.07,3.41224769]
[1766533526697,3.18,124.12,124.07,0.05224769]
[1766533527601,3.18,124.14,124.08,10.6177]
[1766533527899,3.18,124.14,124.1,0.06067713]
[1766533529885,10.4342,124.14,124.1,0.06067713]
[1766533535104,7.2548,124.13,124.1,0.06067713]
[1766533535308,10.4348,124.13,124.1,0.06067713]
[1766533535505,3.18,124.12,124.1,0.00067713]
[1766533535708,3.18,124.12,124.06,3.5]
[1766533536709,3.18,124.12,124.08,0.05956423]
[1766533536710,0.05116585,124.1,124.08,0.05956423]
[1766533550821,3.06,124.08,124.02,3.5]
[1766533551622,0.05489377,124.06,124.04,0.05492773]
[1766533553323,3.11489377,124.06,123.99,7.2625]
[1766533553625,3.11489377,124.06,124.0,3.5]
[1766533553928,3.06,124.04,123.98,98.68]
[1766533554522,0.05162388,124.02,124.0,0.05491723]
[1766533574933,3.11162388,124.02,124.0,0.00491723]
[1766533575137,3.11162388,124.02,123.96,3.41]
[1766533575338,0.05162388,124.02,123.96,3.41]
[1766533576131,0.05162388,124.02,123.98,3.47104393]
[1766533576331,0.00162388,124.02,123.98,3.47104393]
[1766533577532,0.00162388,124.02,123.99,7.2629]
[1766533577734,0.00162388,124.02,123.99,10.6729]
[1766533579638,0.00162388,124.02,124.0,3.41]
[1766533579845,3.06,124.08,124.01,3.41]
[1766533580835,0.05350267,124.06,124.03,0.05909541]
[1766533591850,3.11350267,124.06,124.0,95.24]
[1766533592150,3.11350267,124.06,124.0,3.44]
[1766533592550,3.11350267,124.06,124.0,10.7023]
[1766533592945,3.11350267,124.06,124.02,0.05148336]
[1766533594946,0.05350267,124.06,124.02,10.75258336]
[1766533595148,0.05350267,124.06,124.02,3.49148336]
[1766533596652,0.05350267,124.06,124.03,7.2606]
[1766533599953,3.0,124.09,124.03,10.7006]
[1766533600158,4.31079597,124.08,124.03,10.7006]
[1766533600358,1.31079597,124.08,124.04,3.44]
[1766533600955,0.05351002,124.07,124.05,0.0579713]
[1766533602567,4.31079597,124.11,124.05,3.5679713]
[1766533603060,4.31079597,124.11,124.06,10.7688]
[1766533603657,0.06173237,124.1,124.06,10.7688]
[1766533620359,0.06173237,124.1,124.05,0.0579713]
[1766533620360,3.06173237,124.1,124.05,3.5679713]
[1766533621273,3.06173237,124.1,124.05,0.0579713]